[Event "Latvijas 2022. gada jauniešu čempionāta fināls"]
[Site "Riga, Latvia"]
[Date "2022.06.16"]
[Round "9.6"]
[White "Nazarovs, Daniils"]
[Black "Merzlovs, Timurs"]
[Result "0-1"]
[TimeControl "3600+30"]
[WhiteElo "1245"]
[BlackElo "1152"]

1. e4 {[%clk 01:00:48]} {[%emt 00:00:11]} e5 {[%clk 01:00:58]} {[%emt
00:00:02]} 2. Nf3 {[%clk 01:01:09]} {[%emt 00:00:09]} Nc6 {[%clk 01:01:24]}
{[%emt 00:00:05]} 3. Bb5 {[%clk 01:01:28]} {[%emt 00:00:10]} Nd4 {[%clk
01:01:46]} {[%emt 00:00:08]} 4. Nxd4 {[%clk 01:01:32]} {[%emt 00:00:26]} exd4
{[%clk 01:02:09]} {[%emt 00:00:08]} 5. d3 {[%clk 01:01:42]} {[%emt 00:00:20]}
c6 {[%clk 00:58:20]} {[%emt 00:04:19]} 6. Bc4 {[%clk 01:01:51]} {[%emt
00:00:13]} d5 {[%clk 00:55:05]} {[%emt 00:03:52]} 7. exd5 {[%clk 01:02:00]}
{[%emt 00:00:21]} cxd5 {[%clk 00:55:30]} {[%emt 00:00:06]} 8. Bb5+ {[%clk
01:01:26]} {[%emt 00:00:57]} Bd7 {[%clk 00:55:49]} {[%emt 00:00:17]} 9. Bxd7+
{[%clk 01:01:26]} {[%emt 00:00:30]} Qxd7 {[%clk 00:56:15]} {[%emt 00:00:05]} 10.
O-O {[%clk 01:01:42]} {[%emt 00:00:13]} Bd6 {[%clk 00:56:25]} {[%emt 00:00:20]}
11. Nd2 {[%clk 01:01:31]} {[%emt 00:00:41]} Ne7 {[%clk 00:56:30]} {[%emt
00:00:26]} 12. Nf3 {[%clk 01:01:52]} {[%emt 00:00:08]} Nc6 {[%clk 00:56:29]}
{[%emt 00:00:31]} 13. Re1+ {[%clk 01:00:34]} {[%emt 00:01:48]} Be7 {[%clk
00:56:33]} {[%emt 00:00:26]} 14. Bf4 {[%clk 01:00:24]} {[%emt 00:00:36]} O-O
{[%clk 00:56:43]} {[%emt 00:00:25]} 15. a3 {[%clk 01:00:06]} {[%emt 00:00:47]}
Rfe8 {[%clk 00:55:05]} {[%emt 00:02:08]} 16. Qd2 {[%clk 00:59:55]} {[%emt
00:00:42]} Bd6 {[%clk 00:54:30]} {[%emt 00:01:05]} 17. h3 {[%clk 00:57:06]}
{[%emt 00:03:18]} Qc7 {[%clk 00:54:13]} {[%emt 00:00:47]} 18. Bxd6 {[%clk
00:56:09]} {[%emt 00:01:26]} Qxd6 {[%clk 00:54:34]} {[%emt 00:00:10]} 19. Re2
{[%clk 00:55:17]} {[%emt 00:01:22]} Rxe2 {[%clk 00:53:30]} {[%emt 00:01:34]} 20.
Qxe2 {[%clk 00:55:27]} {[%emt 00:00:19]} Kf8 {[%clk 00:53:07]} {[%emt
00:00:55]} 21. Re1 {[%clk 00:55:04]} {[%emt 00:00:52]} Qd7 {[%clk 00:53:04]}
{[%emt 00:00:33]} 22. Ne5 {[%clk 00:49:06]} {[%emt 00:06:28]} Nxe5 {[%clk
00:52:30]} {[%emt 00:01:05]} 23. Qxe5 {[%clk 00:49:27]} {[%emt 00:00:08]} Re8
{[%clk 00:52:53]} {[%emt 00:00:07]} 24. Qxe8+ {[%clk 00:49:54]} {[%emt
00:00:03]} Qxe8 {[%clk 00:53:09]} {[%emt 00:00:15]} 25. Rxe8+ {[%clk 00:50:20]}
{[%emt 00:00:04]} Kxe8 {[%clk 00:53:35]} {[%emt 00:00:04]} 26. Kh2 {[%clk
00:50:37]} {[%emt 00:00:10]} Kd7 {[%clk 00:53:48]} {[%emt 00:00:19]} 27. Kg3
{[%clk 00:51:02]} {[%emt 00:00:05]} Kd6 {[%clk 00:53:24]} {[%emt 00:00:55]} 28.
Kf4 {[%clk 00:51:02]} {[%emt 00:00:26]} f6 {[%clk 00:53:25]} {[%emt 00:00:32]}
29. g4 {[%clk 00:51:20]} {[%emt 00:00:11]} a6 {[%clk 00:52:24]} {[%emt
00:01:33]} 30. h4 {[%clk 00:50:43]} {[%emt 00:01:07]} Ke6 {[%clk 00:50:16]}
{[%emt 00:02:37]} 31. b3 {[%clk 00:49:58]} {[%emt 00:01:15]} b6 {[%clk
00:50:28]} {[%emt 00:00:18]} 32. g5 {[%clk 00:49:32]} {[%emt 00:00:57]} f5
{[%clk 00:49:14]} {[%emt 00:01:44]} 33. h5 {[%clk 00:46:56]} {[%emt 00:03:06]}
g6 {[%clk 00:49:17]} {[%emt 00:00:27]} 34. Kg3 {[%clk 00:45:15]} {[%emt
00:02:11]} Kd6 {[%clk 00:49:34]} {[%emt 00:00:13]} 35. h6 {[%clk 00:43:53]}
{[%emt 00:01:52]} Ke6 {[%clk 00:49:54]} {[%emt 00:00:09]} 36. f4 {[%clk
00:43:11]} {[%emt 00:01:12]} Kd6 {[%clk 00:49:10]} {[%emt 00:01:13]} 37. Kf2
{[%clk 00:43:29]} {[%emt 00:00:13]} Kc5 {[%clk 00:49:15]} {[%emt 00:00:25]} 38.
Ke2 {[%clk 00:43:44]} {[%emt 00:00:15]} a5 {[%clk 00:49:27]} {[%emt 00:00:19]}
39. Kd2 {[%clk 00:43:02]} {[%emt 00:01:11]} b5 {[%clk 00:49:33]} {[%emt
00:00:25]} 40. c4 {[%clk 00:37:23]} {[%emt 00:06:08]} dxc4 {[%clk 00:48:36]}
{[%emt 00:01:26]} 41. Kc2 {[%clk 00:37:15]} {[%emt 00:00:39]} cxd3+ {[%clk
00:47:19]} {[%emt 00:01:47]} 42. Kxd3 {[%clk 00:37:39]} {[%emt 00:00:05]} Kd5
{[%clk 00:47:42]} {[%emt 00:00:08]} 43. b4 {[%clk 00:37:31]} {[%emt 00:00:39]}
a4 {[%clk 00:48:02]} {[%emt 00:00:09]} 0-1

[Event "Latvijas 2022. gada jauniešu čempionāta fināls"]
[Site "Riga, Latvia"]
[Date "2022.06.16"]
[Round "9.15"]
[White "Platonovs, Nikolajs"]
[Black "Ivulans, Patriks"]
[Result "1-0"]
[TimeControl "3600+30"]
[WhiteElo "1422"]
[BlackElo "1148"]

1. e4 {[%clk 01:00:56]} {[%emt 00:00:03]} e5 {[%clk 01:00:52]} {[%emt
00:00:08]} 2. Nf3 {[%clk 01:01:19]} {[%emt 00:00:07]} Nc6 {[%clk 01:01:10]}
{[%emt 00:00:13]} 3. Bb5 {[%clk 01:01:44]} {[%emt 00:00:05]} a6 {[%clk
01:00:54]} {[%emt 00:00:45]} 4. Ba4 {[%clk 01:02:08]} {[%emt 00:00:06]} Nf6
{[%clk 01:00:58]} {[%emt 00:00:25]} 5. Qe2 {[%clk 01:02:22]} {[%emt 00:00:17]}
Be7 {[%clk 01:01:04]} {[%emt 00:00:23]} 6. O-O {[%clk 01:01:26]} {[%emt
00:01:26]} b5 {[%clk 00:55:29]} {[%emt 00:06:06]} 7. Bb3 {[%clk 01:01:48]}
{[%emt 00:00:08]} O-O {[%clk 00:54:49]} {[%emt 00:01:09]} 8. c3 {[%clk
01:02:00]} {[%emt 00:00:18]} Na5 {[%clk 00:48:37]} {[%emt 00:06:43]} 9. Bc2
{[%clk 01:02:09]} {[%emt 00:00:22]} Bb7 {[%clk 00:48:34]} {[%emt 00:00:32]} 10.
Nxe5 {[%clk 01:01:48]} {[%emt 00:00:51]} d5 {[%clk 00:47:50]} {[%emt 00:01:14]}
11. d3 {[%clk 01:00:29]} {[%emt 00:01:48]} dxe4 {[%clk 00:47:23]} {[%emt
00:00:58]} 12. dxe4 {[%clk 01:00:42]} {[%emt 00:00:16]} Bd6 {[%clk 00:46:16]}
{[%emt 00:01:37]} 13. Nf3 {[%clk 01:01:01]} {[%emt 00:00:11]} Re8 {[%clk
00:46:01]} {[%emt 00:00:45]} 14. Bg5 {[%clk 00:59:34]} {[%emt 00:01:58]} h6
{[%clk 00:45:31]} {[%emt 00:00:59]} 15. Bxf6 {[%clk 00:59:38]} {[%emt
00:00:27]} Qxf6 {[%clk 00:45:36]} {[%emt 00:00:25]} 16. Nbd2 {[%clk 00:59:46]}
{[%emt 00:00:22]} Qe6 {[%clk 00:44:03]} {[%emt 00:01:52]} 17. Nd4 {[%clk
00:58:43]} {[%emt 00:01:44]} Qe5 {[%clk 00:44:18]} {[%emt 00:00:15]} 18. f4
{[%clk 00:59:03]} {[%emt 00:00:10]} Qe7 {[%clk 00:43:56]} {[%emt 00:00:52]} 19.
Qg4 {[%clk 00:59:07]} {[%emt 00:00:25]} Bc5 {[%clk 00:43:20]} {[%emt 00:01:07]}
20. Kh1 {[%clk 00:58:37]} {[%emt 00:01:00]} Bxd4 {[%clk 00:43:03]} {[%emt
00:00:47]} 21. cxd4 {[%clk 00:58:36]} {[%emt 00:00:29]} Qb4 {[%clk 00:42:05]}
{[%emt 00:01:29]} 22. Nb3 {[%clk 00:54:08]} {[%emt 00:04:59]} Nxb3 {[%clk
00:41:36]} {[%emt 00:00:59]} 23. Bxb3 {[%clk 00:54:29]} {[%emt 00:00:09]} Qxd4
{[%clk 00:41:37]} {[%emt 00:00:29]} 24. e5 {[%clk 00:52:47]} {[%emt 00:02:12]}
Qxb2 {[%clk 00:30:32]} {[%emt 00:11:35]} 25. Rab1 {[%clk 00:52:10]} {[%emt
00:01:06]} Qd4 {[%clk 00:28:49]} {[%emt 00:02:13]} 26. Rbd1 {[%clk 00:52:37]}
{[%emt 00:00:02]} Qe4 {[%clk 00:28:06]} {[%emt 00:01:13]} 27. Rfe1 {[%clk
00:50:55]} {[%emt 00:02:12]} Qb4 {[%clk 00:27:26]} {[%emt 00:01:11]} 28. Re3
{[%clk 00:50:19]} {[%emt 00:01:06]} Rad8 {[%clk 00:24:27]} {[%emt 00:03:29]} 29.
Rg1 {[%clk 00:49:43]} {[%emt 00:01:06]} Rd2 {[%clk 00:22:26]} {[%emt 00:02:31]}
30. Rg3 {[%clk 00:49:10]} {[%emt 00:01:04]} Qf8 {[%clk 00:22:42]} {[%emt
00:00:14]} 31. Qg6 {[%emt 00:03:09]} c5 {[%clk 00:21:16]} {[%emt 00:01:55]} 32.
Qxh6 {[%clk 00:46:39]} {[%emt 00:00:22]} c4 {[%clk 00:20:43]} {[%emt 00:01:04]}
33. Bd1 {[%clk 00:45:06]} {[%emt 00:02:03]} c3 {[%clk 00:19:27]} {[%emt
00:01:47]} 34. f5 {[%clk 00:44:02]} {[%emt 00:01:32]} Red8 {[%clk 00:17:56]}
{[%emt 00:02:02]} 35. Bb3 {[%clk 00:43:48]} {[%emt 00:00:44]} c2 {[%clk
00:16:38]} {[%emt 00:01:47]} 36. f6 {[%clk 00:43:54]} {[%emt 00:00:25]} Rxg2
{[%emt 00:02:14]} 37. Bd5 {[%clk 00:41:18]} {[%emt 00:03:04]} Bxd5 {[%clk
00:14:19]} {[%emt 00:01:06]} 38. R1xg2 {[%clk 00:41:11]} {[%emt 00:00:38]}
Bxg2+ {[%clk 00:14:20]} {[%emt 00:00:29]} 39. Kxg2 {[%clk 00:41:30]} {[%emt
00:00:10]} Rd2+ {[%clk 00:10:46]} {[%emt 00:04:04]} 40. Qxd2 {[%clk 00:41:30]}
{[%emt 00:00:31]} Qa8+ {[%clk 00:11:10]} {[%emt 00:00:07]} 41. Kg1 {[%clk
00:41:33]} {[%emt 00:00:24]} Qa7+ {[%clk 00:10:54]} {[%emt 00:00:49]} 42. Kf1
{[%clk 00:41:47]} {[%emt 00:00:14]} Qd4 {[%clk 00:09:21]} {[%emt 00:02:03]} 43.
Rxg7+ {[%clk 00:41:54]} {[%emt 00:00:23]} Kf8 {[%clk 00:09:40]} {[%emt
00:00:12]} 44. Qxd4 {[%clk 00:42:04]} {[%emt 00:00:20]} c1=Q+ {[%clk 00:10:04]}
{[%emt 00:00:07]} 45. Kg2 {[%clk 00:42:11]} {[%emt 00:00:22]} Qc2+ {[%clk
00:10:23]} {[%emt 00:00:12]} 46. Kg3 {[%clk 00:42:22]} {[%emt 00:00:15]} Qc7
{[%clk 00:09:46]} {[%emt 00:01:11]} 47. Qb4+ {[%clk 00:42:19]} {[%emt
00:00:32]} Ke8 {[%clk 00:10:04]} {[%emt 00:00:13]} 48. Rg8+ {[%clk 00:42:21]}
{[%emt 00:00:28]} Kd7 {[%clk 00:10:12]} {[%emt 00:00:22]} 49. Qe7+ {[%clk
00:42:44]} {[%emt 00:00:07]} Kc6 {[%clk 00:10:36]} {[%emt 00:00:06]} 50. Qxc7+
{[%clk 00:43:13]} {[%emt 00:00:02]} Kxc7 {[%clk 00:11:04]} {[%emt 00:00:02]} 51.
e6 {[%clk 00:43:35]} {[%emt 00:00:08]} fxe6 {[%clk 00:11:01]} {[%emt 00:00:33]}
52. f7 {[%clk 00:44:01]} {[%emt 00:00:04]} Kb6 {[%emt 00:00:13]} 53. f8=Q
{[%clk 00:44:24]} {[%emt 00:00:07]} Ka5 {[%clk 00:11:29]} {[%emt 00:00:19]} 54.
Qc5 {[%clk 00:44:28]} {[%emt 00:00:25]} e5 {[%clk 00:11:43]} {[%emt 00:00:16]}
55. Rg6 {[%clk 00:44:46]} {[%emt 00:00:12]} e4 {[%clk 00:12:02]} {[%emt
00:00:12]} 56. Qa3# {[%clk 00:45:12]} {[%emt 00:00:04]} 1-0

[Event "Latvijas 2022. gada jauniešu čempionāta fināls"]
[Site "Riga, Latvia"]
[Date "2022.06.16"]
[Round "9.16"]
[White "Lazars, Krisjanis"]
[Black "Beniosev, Daniel"]
[Result "0-1"]
[TimeControl "3600+30"]
[WhiteElo "1041"]
[BlackElo "1401"]

1. d4 {[%clk 01:00:57]} {[%emt 00:00:02]} c5 {[%clk 01:00:42]} {[%emt
00:00:18]} 2. dxc5 {[%clk 01:01:15]} {[%emt 00:00:12]} e6 {[%clk 01:01:03]}
{[%emt 00:00:08]} 3. b4 {[%clk 01:00:21]} {[%emt 00:01:25]} a5 {[%clk
00:59:55]} {[%emt 00:01:38]} 4. c3 {[%clk 01:00:11]} {[%emt 00:00:40]} axb4
{[%clk 00:58:46]} {[%emt 00:01:39]} 5. cxb4 {[%clk 01:00:27]} {[%emt 00:00:14]}
Qf6 {[%clk 00:58:56]} {[%emt 00:00:19]} 6. Nc3 {[%clk 01:00:01]} {[%emt
00:00:58]} Qxc3+ {[%clk 00:58:59]} {[%emt 00:01:25]} 7. Bd2 {[%clk 01:00:29]}
{[%emt 00:00:02]} Qf6 {[%clk 00:59:14]} {[%emt 00:00:15]} 8. Nf3 {[%clk
01:00:50]} {[%emt 00:00:10]} h6 {[%clk 00:59:21]} {[%emt 00:00:22]} 9. a4
{[%clk 01:00:44]} {[%emt 00:00:37]} Ne7 {[%clk 00:59:39]} {[%emt 00:00:11]} 10.
Rc1 {[%clk 01:00:51]} {[%emt 00:00:24]} Nbc6 {[%clk 00:58:34]} {[%emt
00:01:35]} 11. Bc3 {[%clk 01:01:06]} {[%emt 00:00:14]} Qf5 {[%clk 00:58:29]}
{[%emt 00:00:35]} 12. b5 {[%clk 01:01:06]} {[%emt 00:00:31]} Nd8 {[%clk
00:57:26]} {[%emt 00:01:33]} 13. Nd2 {[%clk 00:58:30]} {[%emt 00:03:05]} Nd5
{[%clk 00:57:40]} {[%emt 00:00:17]} 14. e4 {[%clk 00:58:25]} {[%emt 00:00:35]}
Nxc3 {[%clk 00:58:05]} {[%emt 00:00:06]} 15. Rxc3 {[%clk 00:57:45]} {[%emt
00:01:09]} Qe5 {[%clk 00:57:58]} {[%emt 00:00:37]} 16. Qc2 {[%clk 00:56:53]}
{[%emt 00:01:22]} Qd4 {[%clk 00:57:48]} {[%emt 00:00:40]} 17. Nb3 {[%clk
00:55:25]} {[%emt 00:01:57]} Qxa4 {[%clk 00:58:06]} {[%emt 00:00:12]} 18. Rc4
{[%clk 00:52:22]} {[%emt 00:03:34]} Qa2 {[%clk 00:58:13]} {[%emt 00:00:22]} 19.
Qd3 {[%clk 00:50:11]} {[%emt 00:02:41]} Ra3 {[%emt 00:03:10]} 20. Rc3 {[%clk
00:48:24]} {[%emt 00:00:27]} g6 {[%clk 00:57:28]} {[%emt 00:00:26]} 21. f4
{[%clk 00:46:12]} {[%emt 00:02:41]} g5 {[%clk 00:56:57]} {[%emt 00:01:02]} 22.
Qd4 {[%clk 00:45:45]} {[%emt 00:00:57]} Rg8 {[%clk 00:56:25]} {[%emt 00:01:01]}
23. Bc4 {[%clk 00:45:24]} {[%emt 00:00:51]} Bg7 {[%clk 00:56:31]} {[%emt
00:00:25]} 24. e5 {[%clk 00:45:35]} {[%emt 00:00:18]} Qb1+ {[%clk 00:56:56]}
{[%emt 00:00:05]} 25. Rc1 {[%clk 00:45:51]} {[%emt 00:00:14]} Qg6 {[%clk
00:57:14]} {[%emt 00:00:12]} 26. Bd3 {[%clk 00:45:38]} {[%emt 00:00:43]} f5
{[%clk 00:57:33]} {[%emt 00:00:12]} 27. Qb4 {[%clk 00:45:04]} {[%emt 00:01:03]}
Ra8 {[%clk 00:57:47]} {[%emt 00:00:17]} 28. Nd4 {[%clk 00:44:42]} {[%emt
00:00:51]} gxf4 {[%clk 00:58:05]} {[%emt 00:00:13]} 29. Rg1 {[%clk 00:43:29]}
{[%emt 00:01:43]} Bxe5 {[%clk 00:57:45]} {[%emt 00:00:51]} 30. Nf3 {[%clk
00:43:28]} {[%emt 00:00:29]} Bf6 {[%clk 00:58:03]} {[%emt 00:00:13]} 31. Qxf4
{[%clk 00:42:48]} {[%emt 00:01:08]} Bg5 {[%clk 00:58:21]} {[%emt 00:00:14]} 32.
Nxg5 {[%clk 00:42:22]} {[%emt 00:00:55]} Qxg5 {[%clk 00:58:35]} {[%emt
00:00:17]} 33. Qc4 {[%clk 00:42:34]} {[%emt 00:00:17]} Nf7 {[%clk 00:58:58]}
{[%emt 00:00:07]} 34. Kf2 {[%clk 00:41:11]} {[%emt 00:01:52]} Ne5 {[%clk
00:59:16]} {[%emt 00:00:14]} 35. Qd4 {[%clk 00:40:04]} {[%emt 00:01:37]} Qd2+
{[%clk 00:59:39]} {[%emt 00:00:07]} 0-1

[Event "Latvijas 2022. gada jauniešu čempionāta fināls"]
[Site "Riga, Latvia"]
[Date "2022.06.16"]
[Round "9.17"]
[White "Valdats, Reinis"]
[Black "Derbenev, Arseniy"]
[Result "1-0"]
[TimeControl "3600+30"]
[WhiteElo "1488"]
[BlackElo "1477"]

1. e4 {[%clk 01:00:58]} {[%emt 00:00:02]} e6 {[%clk 01:00:56]} {[%emt
00:00:04]} 2. d4 {[%clk 01:01:24]} {[%emt 00:00:03]} d5 {[%clk 01:01:22]}
{[%emt 00:00:05]} 3. Nc3 {[%clk 01:01:50]} {[%emt 00:00:04]} Bb4 {[%clk
01:01:48]} {[%emt 00:00:04]} 4. exd5 {[%clk 01:02:16]} {[%emt 00:00:04]} exd5
{[%clk 01:02:10]} {[%emt 00:00:09]} 5. Bd3 {[%clk 01:02:42]} {[%emt 00:00:03]}
Nf6 {[%clk 01:02:19]} {[%emt 00:00:21]} 6. Nge2 {[%clk 01:03:03]} {[%emt
00:00:09]} O-O {[%clk 01:02:29]} {[%emt 00:00:20]} 7. O-O {[%clk 01:03:27]}
{[%emt 00:00:07]} h6 {[%clk 01:02:45]} {[%emt 00:00:14]} 8. Ng3 {[%clk
01:02:33]} {[%emt 00:01:23]} Bg4 {[%clk 01:02:46]} {[%emt 00:00:29]} 9. f3
{[%clk 01:02:50]} {[%emt 00:00:13]} Be6 {[%clk 01:03:09]} {[%emt 00:00:07]} 10.
Bf4 {[%clk 01:01:28]} {[%emt 00:01:51]} Bd6 {[%clk 00:59:26]} {[%emt 00:04:13]}
11. Qd2 {[%clk 01:00:15]} {[%emt 00:01:44]} Bxf4 {[%clk 00:59:04]} {[%emt
00:00:52]} 12. Qxf4 {[%clk 01:00:30]} {[%emt 00:00:15]} c6 {[%clk 00:57:43]}
{[%emt 00:01:51]} 13. Rae1 {[%clk 00:58:44]} {[%emt 00:02:16]} Nbd7 {[%clk
00:56:00]} {[%emt 00:02:11]} 14. Nd1 {[%clk 00:50:45]} {[%emt 00:08:31]} Nb6
{[%clk 00:53:56]} {[%emt 00:02:32]} 15. Qc1 {[%clk 00:48:34]} {[%emt 00:02:43]}
Nc4 {[%clk 00:53:32]} {[%emt 00:00:54]} 16. b3 {[%clk 00:46:01]} {[%emt
00:03:03]} Nd6 {[%clk 00:53:24]} {[%emt 00:00:37]} 17. Ne3 {[%clk 00:45:34]}
{[%emt 00:00:58]} Qb6 {[%clk 00:53:16]} {[%emt 00:00:38]} 18. c3 {[%clk
00:44:36]} {[%emt 00:01:27]} c5 {[%clk 00:53:06]} {[%emt 00:00:41]} 19. Qd2
{[%clk 00:40:02]} {[%emt 00:05:05]} cxd4 {[%clk 00:49:35]} {[%emt 00:04:01]} 20.
cxd4 {[%clk 00:40:17]} {[%emt 00:00:14]} Rac8 {[%clk 00:44:11]} {[%emt
00:05:54]} 21. Kh1 {[%clk 00:37:34]} {[%emt 00:03:12]} Rc7 {[%clk 00:42:38]}
{[%emt 00:02:04]} 22. Nef5 {[%clk 00:37:07]} {[%emt 00:00:57]} Nxf5 {[%clk
00:41:39]} {[%emt 00:01:29]} 23. Bxf5 {[%clk 00:37:10]} {[%emt 00:00:26]} Bxf5
{[%clk 00:38:58]} {[%emt 00:03:10]} 24. Nxf5 {[%clk 00:37:28]} {[%emt
00:00:13]} Kh8 {[%clk 00:38:49]} {[%emt 00:00:38]} 25. Rc1 {[%clk 00:35:49]}
{[%emt 00:02:09]} Rfc8 {[%clk 00:38:28]} {[%emt 00:00:52]} 26. Rfe1 {[%clk
00:33:49]} {[%emt 00:02:29]} Qa6 {[%clk 00:23:44]} {[%emt 00:15:14]} 27. Rxc7
{[%clk 00:32:12]} {[%emt 00:02:07]} Rxc7 {[%clk 00:24:03]} {[%emt 00:00:12]} 28.
h3 {[%clk 00:30:31]} {[%emt 00:02:11]} Qc6 {[%clk 00:20:32]} {[%emt 00:04:01]}
29. Qb4 {[%clk 00:24:28]} {[%emt 00:06:33]} Rc8 {[%clk 00:18:32]} {[%emt
00:02:28]} 30. Nd6 {[%clk 00:22:13]} {[%emt 00:02:46]} Rc7 {[%clk 00:18:21]}
{[%emt 00:00:39]} 31. Nb5 {[%clk 00:21:00]} {[%emt 00:01:45]} Rd7 {[%clk
00:17:00]} {[%emt 00:01:49]} 32. Nxa7 {[%clk 00:19:30]} {[%emt 00:02:01]} Qa6
{[%clk 00:16:45]} {[%emt 00:00:44]} 33. Qa4 {[%clk 00:19:08]} {[%emt 00:00:53]}
Qxa4 {[%clk 00:16:15]} {[%emt 00:01:00]} 34. bxa4 {[%clk 00:19:31]} {[%emt
00:00:07]} b6 {[%clk 00:16:30]} {[%emt 00:00:15]} 35. Nb5 {[%clk 00:19:34]}
{[%emt 00:00:26]} Rd8 {[%clk 00:15:15]} {[%emt 00:01:45]} 36. Re7 {[%clk
00:19:16]} {[%emt 00:00:48]} Kg8 {[%clk 00:15:23]} {[%emt 00:00:22]} 37. Rb7
{[%clk 00:19:04]} {[%emt 00:00:42]} Ra8 {[%clk 00:15:31]} {[%emt 00:00:23]} 38.
Ra7 {[%clk 00:18:40]} {[%emt 00:00:53]} Rd8 {[%clk 00:15:20]} {[%emt 00:00:40]}
39. Kg1 {[%clk 00:17:59]} {[%emt 00:01:12]} Nh5 {[%clk 00:14:57]} {[%emt
00:00:52]} 40. Ra6 {[%clk 00:18:02]} {[%emt 00:00:29]} Rb8 {[%clk 00:15:00]}
{[%emt 00:00:27]} 41. Nc7 {[%clk 00:15:34]} {[%emt 00:02:58]} Nf4 {[%clk
00:15:10]} {[%emt 00:00:22]} 42. Ra8 {[%clk 00:15:03]} {[%emt 00:01:00]} Rf8
{[%clk 00:12:04]} {[%emt 00:03:35]} 43. Rxf8+ {[%clk 00:14:57]} {[%emt
00:00:37]} Kxf8 {[%clk 00:12:28]} {[%emt 00:00:07]} 44. Na8 {[%clk 00:15:02]}
{[%emt 00:00:24]} Ke7 {[%clk 00:11:02]} {[%emt 00:01:55]} 45. Nxb6 {[%clk
00:14:47]} {[%emt 00:00:46]} Kd6 {[%clk 00:11:01]} {[%emt 00:00:28]} 46. Kf2
{[%clk 00:13:12]} {[%emt 00:02:08]} Nd3+ {[%clk 00:10:18]} {[%emt 00:01:11]} 47.
Ke3 {[%clk 00:12:50]} {[%emt 00:00:53]} Nb4 {[%clk 00:09:15]} {[%emt 00:01:34]}
48. a3 {[%clk 00:08:38]} {[%emt 00:04:43]} Nc2+ {[%clk 00:09:08]} {[%emt
00:00:35]} 49. Kd3 {[%clk 00:09:02]} {[%emt 00:00:07]} Nxa3 {[%clk 00:08:52]}
{[%emt 00:00:46]} 50. Kc3 {[%clk 00:08:53]} {[%emt 00:00:39]} Kc6 {[%clk
00:07:54]} {[%emt 00:01:28]} 51. Kb2 {[%clk 00:06:49]} {[%emt 00:02:35]} Nb5
{[%clk 00:07:50]} {[%emt 00:00:30]} 52. Nxd5 {[%clk 00:07:11]} {[%emt
00:00:13]} Nxd4 {[%clk 00:07:51]} {[%emt 00:00:25]} 53. Ne3 {[%clk 00:06:52]}
{[%emt 00:00:50]} h5 {[%clk 00:06:46]} {[%emt 00:01:36]} 54. Kc3 {[%clk
00:06:50]} {[%emt 00:00:30]} Ne2+ {[%clk 00:06:59]} {[%emt 00:00:18]} 55. Kc4
{[%clk 00:06:11]} {[%emt 00:01:10]} Nf4 {[%clk 00:05:43]} {[%emt 00:01:46]} 56.
h4 {[%clk 00:05:50]} {[%emt 00:00:51]} Ne6 {[%clk 00:05:27]} {[%emt 00:00:45]}
57. g4 {[%clk 00:05:37]} {[%emt 00:00:43]} hxg4 {[%clk 00:05:30]} {[%emt
00:00:27]} 58. fxg4 {[%clk 00:05:40]} {[%emt 00:00:28]} Nc5 {[%clk 00:04:19]}
{[%emt 00:01:40]} 59. a5 {[%clk 00:05:34]} {[%emt 00:00:36]} Nb7 {[%clk
00:03:11]} {[%emt 00:01:37]} 60. Kb4 {[%clk 00:03:49]} {[%emt 00:02:16]} Nd6
{[%clk 00:02:13]} {[%emt 00:01:28]} 61. Nf5 {[%clk 00:03:45]} {[%emt 00:00:34]}
Ne8 {[%clk 00:02:02]} {[%emt 00:00:40]} 62. Nd4+ {[%clk 00:02:30]} {[%emt
00:01:46]} Kb7 {[%clk 00:02:22]} {[%emt 00:00:09]} 63. Nf3 {[%clk 00:01:34]}
{[%emt 00:01:26]} f6 {[%clk 00:02:37]} {[%emt 00:00:16]} 64. Nd4 {[%clk
00:01:51]} {[%emt 00:00:13]} Ka6 {[%clk 00:02:57]} {[%emt 00:00:10]} 65. Ne6
{[%clk 00:02:07]} {[%emt 00:00:13]} Kb7 {[%clk 00:03:04]} {[%emt 00:00:23]} 66.
Kc5 {[%clk 00:01:39]} {[%emt 00:00:59]} g6 {[%clk 00:02:30]} {[%emt 00:01:04]}
67. a6+ {[%clk 00:01:19]} {[%emt 00:00:50]} Kxa6 {[%clk 00:02:53]} {[%emt
00:00:07]} 68. Kc6 {[%clk 00:01:48]} {[%emt 00:00:02]} f5 {[%clk 00:00:31]}
{[%emt 00:02:51]} 69. g5 {[%clk 00:02:07]} {[%emt 00:00:10]} Ka7 {[%clk
00:00:39]} {[%emt 00:00:21]} 70. Kd7 {[%clk 00:01:49]} {[%emt 00:00:50]} Ng7
{[%clk 00:00:54]} {[%emt 00:00:15]} 71. Nf4 {[%clk 00:01:47]} {[%emt 00:00:31]}
Kb7 {[%clk 00:00:32]} {[%emt 00:00:53]} 72. Ke7 {[%clk 00:01:49]} {[%emt
00:00:27]} Kc7 {[%clk 00:00:36]} {[%emt 00:00:27]} 73. Kf7 {[%clk 00:01:58]}
{[%emt 00:00:21]} Nh5 {[%clk 00:00:58]} {[%emt 00:00:09]} 74. Nxh5 {[%clk
00:02:20]} {[%emt 00:00:07]} gxh5 {[%clk 00:01:19]} {[%emt 00:00:08]} 75. g6
{[%clk 00:02:48]} {[%emt 00:00:03]} f4 {[%clk 00:01:23]} {[%emt 00:00:26]} 76.
g7 {[%clk 00:03:11]} {[%emt 00:00:07]} f3 {[%clk 00:01:45]} {[%emt 00:00:09]}
77. g8=Q {[%clk 00:03:34]} {[%emt 00:00:06]} f2 {[%clk 00:02:06]} {[%emt
00:00:10]} 78. Qg3+ {[%clk 00:03:58]} {[%emt 00:00:06]} 1-0